bitfinex/quotes_SOLUSD_20260223
["timestamp","ask_amount","ask_price","bid_price","bid_amount"]
[1771834823826,31.62595352,79.049,79.021,0.78530971]
[1771834825145,12.64994204,79.052,79.022,0.78530971]
[1771834827346,12.64878128,79.059,79.024,0.78530971]
[1771834827660,4.90835403,79.05,79.025,0.78530971]
[1771834829549,12.6503814,79.049,79.025,0.78530971]
[1771834834154,4.92717915,79.04,79.025,0.78530971]
[1771834834356,4.92717915,79.04,79.02,0.2]
[1771834835430,4.92717915,79.04,79.02,0.98530971]
[1771834835736,4.92717915,79.04,79.021,0.78530971]
[1771834836137,17.57910619,79.04,79.021,0.78530971]
[1771834842353,0.02114656,79.049,79.021,0.78530971]
[1771834843653,4.92717915,79.05,79.021,0.78530971]
[1771834844663,49.1973537,79.06,79.023,0.78530971]
[1771834844865,0.0225958,79.059,79.023,0.78530971]
[1771834845035,0.0225958,79.039,79.02,0.2]
[1771834845354,0.0225958,79.039,79.014,0.2451515]
[1771834845534,0.77561022,79.037,79.014,0.2451515]
[1771834846153,0.77561022,79.029,78.972,44.31950563]
[1771834846441,0.77561022,79.037,78.972,44.31950563]
[1771834846856,0.77561022,79.035,78.972,44.31950563]
[1771834847045,4.92717915,79.03,78.972,44.31950563]
[1771834847354,4.92717915,79.03,78.973,0.77799476]
[1771834848056,12.6532911,79.031,78.975,0.72826699]
[1771834848355,13.39294369,79.031,78.975,0.72826699]
[1771834849255,13.39294369,79.031,78.961,3.69383402]
[1771834849256,0.73965259,79.029,78.977,0.72826699]
[1771834849555,0.73965259,79.019,78.977,0.72826699]
[1771834851169,13.39499694,79.018,78.979,0.72826699]
[1771834851460,0.73965259,79.017,78.979,0.72826699]
[1771834856156,5.66683174,79.01,78.981,0.72826699]
[1771834856360,13.39531726,79.016,78.981,0.72826699]
[1771834856546,0.73965259,79.015,78.981,0.72826699]
[1771834857450,13.39448759,79.022,78.981,0.72826699]
[1771834857655,0.73965259,79.021,78.981,0.72826699]
[1771834858344,0.73965259,79.021,78.982,44.31389429]
[1771834858550,0.73965259,79.021,78.983,0.72826699]
[1771834858750,13.39467663,79.02,78.983,0.72826699]
[1771834858950,13.39420005,79.023,78.983,0.72826699]
[1771834860269,0.73965259,79.022,78.985,0.72826699]
[1771834860648,0.73965259,79.034,78.985,0.72826699]
[1771834861550,0.73953834,78.989,78.97,0.2]
[1771834861755,0.73350995,78.979,78.959,0.72826699]
[1771834862155,12.66095235,78.983,78.96,0.72826699]
[1771834862360,6.579,78.984,78.96,0.72826699]
[1771834862954,1.58769667,78.984,78.962,0.72826699]
[1771834863160,0.05675019,78.984,78.956,44.32848674]
[1771834867180,0.73350995,78.998,78.956,44.32848674]
[1771834868079,0.755555,78.997,78.957,25.59839812]
[1771834869380,0.755555,78.995,78.958,12.66496111]
[1771834871080,0.755555,78.993,78.958,12.66496111]
[1771834871883,0.755555,78.993,78.958,44.3273639]
[1771834874090,0.755555,78.993,78.96,44.32624113]
[1771834875088,0.755555,78.993,78.96,12.66464032]
[1771834875393,0.755555,78.991,78.96,12.66464032]
[1771834875968,0.755555,78.991,78.96,44.32624113]
[1771834876176,0.755555,78.99,78.96,44.32624113]
[1771834876382,0.755555,78.99,78.96,12.66464032]
[1771834879796,0.755555,78.99,78.962,12.66431954]
[1771834880287,0.755555,79.019,78.962,12.66431954]
[1771834880595,0.755555,79.019,78.962,44.3251184]
[1771834880793,0.755555,79.019,78.963,25.59839812]
[1771834882176,0.755555,79.017,78.964,44.32399574]
[1771834884302,0.755555,79.009,78.964,44.32399574]
[1771834885917,50.58738434,79.072,78.968,3.69383402]
[1771834885918,0.755555,79.036,78.968,3.69383402]
[1771834886198,0.755555,79.029,78.97,44.32062808]
[1771834888602,0.755555,79.009,78.97,12.66303659]
[1771834890791,12.65694613,79.008,78.962,44.3251184]
[1771834890995,0.755555,79.007,78.962,44.3251184]
[1771834893500,0.755555,79.029,78.965,3.69383402]
[1771834893683,0.755555,79.029,78.965,29.29223214]
[1771834895406,0.755555,79.027,78.969,3.69383402]
[1771834897506,0.755555,79.027,78.973,3.69383402]
[1771834898399,0.755555,79.027,78.974,107.63035934]
[1771834898607,0.755555,79.027,78.978,3.69383402]
[1771834900903,0.755555,79.026,78.979,44.31557755]
[1771834902305,0.755555,79.029,78.979,44.31557755]
[1771834902511,0.755555,79.019,78.979,44.31557755]
[1771834904510,0.755555,79.019,78.972,63.31339794]
[1771834906507,0.755555,78.999,78.962,44.3251184]
[1771834908511,0.755555,78.999,78.962,31.66079886]
[1771834910915,0.755555,78.998,78.962,31.66079886]
[1771834911113,12.6584829,78.999,78.956,12.66528192]
[1771834911114,0.755555,78.989,78.956,12.66528192]
[1771834912811,0.755555,78.989,78.955,12.8630458]
[1771834912812,0.755555,78.969,78.955,4.86224443]
[1771834914722,0.755555,78.969,78.956,12.66528192]
[1771834916025,17.59184609,78.99,78.956,13.1782848]
[1771834917813,17.59184609,78.99,78.958,12.66496111]
[1771834918015,0.61360736,78.989,78.958,12.66496111]
[1771834920012,0.61360736,78.979,78.958,12.66496111]
[1771834922820,0.61360736,78.969,78.955,4.86224443]
[1771834923923,0.61360736,78.959,78.955,3.1462013]
[1771834924108,0.61360736,78.959,78.94,0.2]
[1771834924308,4.9319337,78.95,78.94,0.2]
[1771834926527,4.9319337,78.94,78.9,0.62242513]
[1771834927104,4.9319337,78.93,78.901,12.67411059]
[1771834927309,12.66961446,78.929,78.901,12.67411059]
[1771834927504,12.66961446,78.929,78.89,31.68954395]
[1771834927713,4.9319337,78.92,78.895,0.62242513]
[1771834928232,12.66961446,78.929,78.889,0.62242513]
[1771834928233,4.9319337,78.91,78.889,0.62242513]
[1771834928413,4.9319337,78.9,78.863,0.62242513]
[1771834928614,3.69383402,78.925,78.882,0.62242513]
[1771834928811,4.9319337,78.91,78.882,0.62242513]
[1771834929014,4.9319337,78.9,78.88,12.87746738]
[1771834930331,31.67290884,78.932,78.881,0.62242513]
[1771834930720,12.66800947,78.939,78.881,0.62242513]
[1771834930919,0.03346509,78.938,78.881,0.62242513]
[1771834931231,0.03346509,78.938,78.883,0.62242513]
[1771834934034,0.03346509,78.938,78.885,0.62242513]
[1771834934250,0.10227456,78.948,78.888,0.62242513]
[1771834934414,0.10227456,78.955,78.888,0.62242513]
[1771834935618,0.12467097,78.949,78.888,0.62242513]
[1771834936741,0.14683737,78.948,78.89,0.62242513]
[1771834939139,0.14683737,78.948,78.893,0.65778776]
[1771834939740,0.14683737,78.948,78.895,0.65778776]
[1771834940428,0.27435709,78.939,78.895,0.65778776]
[1771834943242,0.27435709,78.939,78.894,25.59839812]
[1771834943243,0.33490259,78.937,78.897,0.65778776]
[1771834943437,0.33490259,78.929,78.897,0.65778776]
[1771834943750,0.33490259,78.919,78.883,0.65778776]
[1771834945441,0.3741656,78.917,78.884,12.67684194]
[1771834945618,0.3741656,78.917,78.884,38.93302782]
[1771834945824,0.3741656,78.917,78.885,0.65778776]
[1771834946142,0.39345505,78.931,78.886,0.65778776]
[1771834947123,0.39345505,78.931,78.885,25.59839812]
[1771834947124,0.41252733,78.929,78.888,0.65778776]
[1771834949846,12.66977498,78.928,78.889,12.67603848]
[1771834950040,0.46845746,78.927,78.89,25.59839812]
[1771834950226,0.46845746,78.927,78.891,0.65778776]
[1771834951047,0.46845746,78.927,78.893,0.65778776]
[1771834953250,12.67009603,78.926,78.894,12.67523512]
[1771834953433,0.52247614,78.925,78.895,0.65778776]
[1771834954729,0.54006502,78.919,78.892,25.59839812]
[1771834954939,0.54006502,78.919,78.893,0.65778776]
[1771834955944,13.24602093,78.918,78.895,0.65778776]
[1771834957049,13.24602093,78.918,78.895,12.67507446]
[1771834957240,13.24602093,78.918,78.896,0.65778776]
[1771834958154,0.60842262,78.924,78.896,0.65778776]
[1771834959147,12.67057765,78.923,78.896,0.65778776]
[1771834959346,0.62502632,78.922,78.896,0.65778776]
[1771834960454,0.62502632,78.922,78.898,0.65778776]
[1771834961052,12.67057765,78.923,78.898,0.65778776]
[1771834961455,13.3276128,78.927,78.9,0.65778776]
[1771834961837,13.3276128,78.927,78.902,0.65778776]
[1771834962149,12.66993551,78.927,78.902,0.65778776]
[1771834963654,0.67067105,78.937,78.903,12.67378933]
[1771834963844,2.47215037,98.964,78.903,12.67378933]
[1771834963845,0.67067105,78.948,78.905,0.65778776]
[1771834964151,0.67067105,78.948,78.907,0.65778776]
[1771834964350,0.67067105,78.971,78.909,0.65778776]
[1771834964538,0.67067105,78.959,78.911,0.65778776]
[1771834965738,0.67067105,78.959,78.91,25.59839812]
[1771834965739,0.67067105,78.957,78.913,0.65778776]
[1771834966743,0.67067105,78.955,78.915,0.65778776]
[1771834967456,12.66475574,78.96,78.915,0.65778776]
[1771834967655,0.76602308,78.972,78.92,0.93081567]
[1771834967840,0.76602308,78.972,78.922,0.93081567]
[1771834968436,0.78080811,78.969,78.922,0.93081567]
[1771834968853,0.78080811,78.969,78.921,25.59839812]
[1771834968854,0.78080811,78.967,78.924,0.93081567]
[1771834970557,0.78080811,78.967,78.926,0.93081567]
[1771834970759,0.8099049,78.965,78.926,0.93081567]
[1771834971454,0.98476653,78.949,78.92,12.67093235]
[1771834972457,0.98476653,78.939,78.895,3.69383402]
[1771834972643,0.98476653,78.937,78.899,3.69383402]
[1771834973543,0.98476653,78.937,78.9,0.93081567]
[1771834974765,0.98476653,78.937,78.901,44.35938707]
[1771834975059,0.98476653,78.937,78.902,0.93081567]
[1771834976462,0.98476653,78.937,78.902,26.52921379]
[1771834976657,0.98476653,78.937,78.903,0.93081567]
[1771834980265,0.98476653,78.937,78.905,0.93081567]
[1771834980477,0.98476653,78.935,78.904,12.67362871]
[1771834980651,0.98476653,78.935,78.898,0.93081567]
[1771834980848,0.98476653,78.935,78.898,13.60533396]
[1771834981169,0.98476653,78.935,78.899,0.93081567]
[1771834982259,0.98476653,78.929,78.881,0.93081567]
[1771834982563,44.3408417,78.934,78.875,12.67828355]
[1771834982564,0.98476653,78.909,78.875,12.67828355]
[1771834983551,0.98476653,78.907,78.875,12.67828355]
[1771834984965,0.98476653,78.905,78.87,12.67903147]
[1771834985292,0.98476653,78.899,78.87,12.67903147]
[1771834986156,0.98476653,78.899,78.86,0.93081567]
[1771834986362,0.98476653,78.899,78.861,12.68053917]
[1771834986561,0.98476653,78.906,78.862,0.93081567]
[1771834986963,0.98476653,78.906,78.863,44.38076157]
[1771834987163,0.98476653,78.906,78.864,0.93081567]
[1771834989474,0.98476653,78.906,78.866,0.93081567]
[1771834989771,0.98476653,78.905,78.866,0.93081567]
[1771834991072,0.98476653,78.905,78.865,44.37963608]
[1771834991073,0.98476653,78.905,78.868,0.93081567]
[1771834991969,0.98476653,78.905,78.869,44.37738527]
[1771834992162,0.98476653,78.905,78.87,0.93081567]
[1771834996975,0.98476653,78.905,78.873,0.93081567]
[1771835000183,1.14341976,78.903,78.873,0.93081567]
[1771835000475,1.14341976,78.903,78.873,13.60939511]
[1771835000682,1.14341976,78.903,78.874,1.17747612]
[1771835001491,12.67394996,78.902,78.874,1.17747612]
[1771835001697,1.14341976,78.901,78.874,1.17747612]
[1771835002601,12.67394996,78.902,78.871,21.17909487]
[1771835002602,1.14341976,78.899,78.871,21.17909487]
[1771835002887,1.14341976,78.899,78.865,12.67989602]
[1771835005186,12.67459251,78.898,78.865,13.90929576]
[1771835005385,0.03111863,78.897,78.865,13.90929576]
[1771835005891,0.03111863,78.897,78.866,1.22939974]
[1771835006793,12.67459251,78.898,78.865,1.250037]
[1771835006972,50.66539802,78.95,78.867,1.250037]
[1771835007282,4.94227736,78.93,78.869,1.250037]
[1771835007466,4.94227736,78.92,78.869,1.250037]
[1771835008383,4.94227736,78.93,78.869,1.250037]
[1771835009068,4.94227736,78.92,78.871,1.250037]
[1771835009887,0.02370793,78.919,78.871,1.250037]
[1771835011582,0.02815189,78.918,78.874,1.250037]
[1771835011885,0.02815189,78.918,78.876,1.250037]
[1771835014487,0.02815189,78.918,78.878,1.250037]
[1771835017493,0.02815189,78.918,78.881,1.250037]
[1771835019284,0.02815189,78.918,78.88,12.67748478]
[1771835019285,0.02815189,78.918,78.879,19.23432999]
[1771835019491,0.05765372,78.908,78.881,1.250037]
[1771835020498,0.06115341,78.921,78.883,1.250037]
[1771835020694,0.06115341,78.932,78.885,1.250037]
[1771835020884,0.06115341,78.932,78.887,1.250037]
[1771835024806,0.07475479,78.929,78.888,12.67619916]
[1771835025005,0.07475479,78.929,78.889,1.250037]
[1771835025886,0.07475479,78.929,78.891,1.250037]
[1771835027397,0.07475479,78.929,78.892,44.36444759]
[1771835027701,0.07475479,78.929,78.893,1.28880143]
[1771835031207,0.10014264,78.919,78.88,1.28880143]
[1771835032215,0.1031543,78.918,78.883,1.28880143]
[1771835037199,0.1031543,78.918,78.884,12.67684194]
[1771835037399,0.1031543,78.918,78.885,1.28880143]
[1771835037916,0.1031543,78.918,78.885,19.23432999]
[1771835038097,0.1031543,78.918,78.886,1.28880143]
[1771835041214,0.1031543,78.918,78.888,1.28880143]
[1771835045621,0.1031543,78.918,78.89,1.28880143]
[1771835046724,0.1031543,78.918,78.892,1.28880143]
[1771835048623,0.1031543,78.918,78.894,1.28880143]
[1771835049524,0.1031543,78.918,78.895,12.67507446]
[1771835049825,0.1031543,78.918,78.896,1.28880143]
[1771835060840,0.1031543,78.918,78.897,12.67475315]
[1771835061015,0.1031543,78.918,78.898,1.26970799]
[1771835064642,0.18734629,78.922,78.899,1.26970799]
[1771835065749,0.18935634,78.92,78.899,1.26970799]
[1771835067146,0.19330743,78.919,78.899,1.26970799]
[1771835067544,0.19330743,78.919,78.894,1.26970799]
[1771835069172,0.19330743,78.919,78.896,1.26970799]
[1771835070059,0.19906551,78.917,78.891,1.26970799]
[1771835070265,6.59563289,78.87,78.855,1.51485949]
[1771835070565,0.19906551,78.869,78.845,1.26970799]
[1771835070762,5.14262514,78.86,78.833,1.26970799]
[1771835070980,1.31947849,78.843,78.791,50.76713892]
[1771835071147,15.32593722,78.869,78.786,3.69383402]
[1771835071148,12.68182567,78.853,78.786,3.69383402]
[1771835071346,1.31947849,78.852,78.82,44.60491379]
[1771835071577,1.31947849,78.856,78.82,44.60491379]
[1771835072268,1.31947849,78.856,78.82,0.2]
[1771835072471,15.32593722,78.869,78.821,12.68697428]
[1771835072472,1.31947849,78.867,78.821,12.68697428]
[1771835073083,6.59563289,78.87,78.822,1.26970799]
[1771835073861,6.59563289,78.87,78.824,1.26970799]
[1771835075556,12.67925293,78.869,78.824,1.26970799]
[1771835076062,12.67925293,78.869,78.82,0.2]
[1771835076063,12.67925293,78.869,78.826,1.26970799]
[1771835077266,1.31947849,78.873,78.826,1.26970799]
[1771835078451,12.67877066,78.872,78.827,44.4010301]
[1771835078654,1.31947849,78.871,78.828,1.26970799]
[1771835079065,1.31947849,78.869,78.828,1.26970799]
[1771835080878,1.31947849,78.869,78.821,19.23432999]
[1771835080879,1.31947849,78.871,78.83,1.26970799]
[1771835081381,1.31947849,78.869,78.83,1.26970799]
[1771835083165,1.31947849,78.869,78.82,31.91782355]
[1771835083166,1.31947849,78.867,78.833,1.26970799]
[1771835083779,1.31947849,78.875,78.833,1.26970799]
[1771835084161,1.31947849,78.869,78.833,1.26970799]
[1771835084362,1.31947849,78.869,78.82,0.2]
[1771835084680,1.31947849,78.864,78.821,1.26970799]
[1771835084980,1.31947849,78.849,78.821,1.26970799]
[1771835085176,12.68262987,78.848,78.821,1.26970799]
[1771835085483,114.09880956,78.879,78.82,0.2]
[1771835085484,1.31947849,78.858,78.823,1.26970799]
[1771835085973,1.31947849,78.866,78.823,1.26970799]
[1771835086668,1.31947849,78.866,78.823,0.48355905]
[1771835087388,1.31947849,78.864,78.824,12.68649142]
[1771835088787,1.37229608,78.862,78.827,1.28634445]
[1771835090685,1.37229608,78.862,78.829,1.28634445]
[1771835090988,1.37229608,78.86,78.829,1.28634445]
[1771835091184,1.37229608,78.86,78.824,1.28634445]
[1771835091185,1.37229608,78.859,78.824,1.28634445]
[1771835091379,1.37229608,78.849,78.821,19.23432999]
[1771835091583,1.37229608,78.849,78.822,19.23432999]
[1771835092386,1.37229608,78.849,78.82,1.48634445]
[1771835092589,1.37229608,78.849,78.822,1.28634445]
[1771835093286,12.68262987,78.848,78.822,1.28634445]
[1771835095191,12.68262987,78.848,78.82,0.2]
[1771835095192,1.37229608,78.866,78.824,1.28634445]
[1771835095377,12.67877066,78.872,78.824,1.28634445]
[1771835095778,1.37229608,78.871,78.824,1.28634445]
[1771835096694,1.37229608,78.871,78.824,0.52420051]
[1771835098478,1.37229608,78.859,78.82,0.2]
[1771835098797,1.37229608,78.859,78.822,1.28634445]
[1771835101397,1.37229608,78.857,78.822,1.28634445]
[1771835101787,1.37229608,78.849,78.82,0.2]
[1771835102000,1.37229608,78.849,78.821,19.23432999]
[1771835103092,1.37229608,78.849,78.82,0.2]
[1771835103888,1.37229608,78.847,78.82,0.2]
[1771835105506,44.39033051,78.846,78.82,0.2]
[1771835105803,1.37229608,78.845,78.82,0.2]
[1771835106696,1.37229608,78.845,78.816,0.72393695]
[1771835107081,4.94876084,78.84,78.816,0.72393695]
[1771835107290,12.68295157,78.846,78.816,0.72393695]
[1771835107495,31.70386865,78.855,78.762,12.69647799]
[1771835107496,1.37229608,78.845,78.762,12.69647799]
[1771835107699,1.37229608,78.844,78.763,19.23432999]
[1771835107908,1.37229608,78.85,78.767,3.69383402]
[1771835108206,1.37229608,78.849,78.767,3.69383402]
[1771835108401,1.37229608,78.859,78.771,3.69383402]
[1771835108703,1.37229608,78.859,78.768,53.74802577]
[1771835108704,1.37229608,78.859,78.776,1.28634445]
[1771835109384,0.37229608,78.859,78.777,1.28634445]
[1771835109702,0.37229608,78.859,78.763,10.12938353]
[1771835109703,12.67780623,78.878,78.782,1.28634445]
[1771835109904,12.67780623,78.878,78.786,1.28634445]
[1771835110082,12.67780623,78.878,78.786,3.69383402]
[1771835110278,12.67780623,78.878,78.787,1.28634445]
[1771835110487,4.94876084,78.87,78.789,1.28634445]
[1771835110691,4.94876084,78.88,78.793,1.28634445]
[1771835110989,4.94876084,78.89,78.795,1.28634445]
[1771835111183,12.67571712,78.891,78.797,1.28634445]
[1771835111510,4.94876084,78.87,78.804,1.28634445]
[1771835111680,4.94876084,78.88,78.804,1.28634445]
[1771835112104,4.94876084,78.88,78.806,1.28634445]
[1771835112289,1.37229608,78.89,78.808,1.28634445]
[1771835112485,1.37229608,78.897,78.808,1.28634445]
[1771835112709,4.94876084,78.89,78.808,1.28634445]
[1771835113295,1.37229608,78.897,78.81,1.28634445]
[1771835113493,4.94876084,78.89,78.81,1.28634445]
[1771835113691,1.37229608,78.904,78.815,1.28634445]
[1771835113895,4.94876084,78.9,78.815,1.28634445]
[1771835114108,4.94876084,78.9,78.817,1.28634445]
[1771835114294,1.37229608,78.905,78.819,1.28634445]
[1771835114609,1.37229608,78.909,78.821,1.28634445]
[1771835114812,1.37229608,78.899,78.823,1.28634445]
[1771835115306,1.37229608,78.885,78.823,1.28634445]
[1771835115605,6.32105692,78.88,78.825,1.28634445]
[1771835115992,4.94876084,78.88,78.825,1.28634445]
[1771835116405,1.37229608,78.886,78.828,1.28634445]
[1771835117199,4.94876084,78.88,78.828,1.28634445]
[1771835117603,4.94876084,78.89,78.83,1.35321655]
[1771835117909,1.42127022,78.889,78.83,1.35321655]
[1771835119398,1.42127022,78.889,78.829,260.05657811]
[1771835119399,1.42127022,78.889,78.832,1.36216225]
[1771835119595,1.42127022,78.889,78.834,1.36216225]
[1771835121916,1.32377361,78.895,78.836,1.36216225]
[1771835122217,1.32377361,78.895,78.835,209.29790066]
[1771835122218,1.32377361,78.889,78.838,1.36216225]
[1771835122417,1.32377361,78.889,78.84,1.36216225]
[1771835122817,1.32377361,78.889,78.841,1.36216225]
[1771835123019,1.32377361,78.897,78.841,1.36216225]
[1771835124131,1.32377361,78.897,78.843,1.36216225]
[1771835124624,1.32377361,78.897,78.845,1.36216225]
[1771835125513,1.32377361,78.897,78.848,1.36216225]
[1771835126435,1.32377361,78.909,78.85,1.36216225]
[1771835126733,1.32377361,78.909,78.852,1.36216225]
[1771835127533,4.94876084,78.92,78.854,1.36216225]
[1771835127534,1.32377361,78.907,78.854,1.36216225]
[1771835127839,1.32377361,78.907,78.857,1.36216225]
[1771835129222,1.32377361,78.907,78.859,1.36216225]
[1771835129608,1.32377361,78.907,78.863,1.36216225]
[1771835131817,1.32377361,78.907,78.865,1.36216225]
[1771835133333,4.94876084,78.92,78.869,1.36216225]
[1771835133631,4.94876084,78.93,78.871,1.36216225]
[1771835134028,12.66961446,78.929,78.871,1.36216225]
[1771835135524,1.32377361,78.926,78.873,1.36216225]
[1771835137239,1.32377361,78.926,78.874,107.76681796]
[1771835137427,1.32377361,78.926,78.876,1.36216225]
[1771835137842,1.32377361,78.925,78.876,1.36216225]
[1771835138628,1.32377361,78.909,78.875,52.47847469]
[1771835140048,1.32377361,78.899,78.876,12.67812769]
[1771835140248,1.32377361,78.899,78.877,19.23432999]
[1771835142150,1.32377361,78.889,78.878,12.67780623]
[1771835142354,1.32377361,78.889,78.878,11.18981913]
[1771835142646,1.32377361,78.889,78.878,30.42414912]
[1771835142943,4.94111687,78.91,78.879,2.12759997]
[1771835144427,12.67282565,78.909,78.88,12.67748478]
[1771835144622,4.94111687,78.9,78.88,12.67748478]
[1771835145732,12.67282565,78.909,78.88,12.67748478]
[1771835146721,4.94111687,78.91,78.881,2.12759997]
[1771835147036,17.61387224,78.91,78.881,2.12759997]
[1771835151838,44.33859484,78.938,78.882,12.67716335]
[1771835152039,4.94111687,78.91,78.883,19.23432999]
[1771835152240,4.94111687,78.91,78.884,19.23432999]
[1771835153354,4.94111687,78.91,78.885,2.12759997]
[1771835153748,4.94111687,78.92,78.885,2.12759997]
[1771835154060,12.66833044,78.937,78.887,2.12759997]
[1771835154253,5.04111687,78.94,78.887,2.12759997]
[1771835154545,12.66800947,78.939,78.887,2.12759997]
[1771835156746,12.66800947,78.939,78.889,2.12759997]
[1771835157058,0.1,78.94,78.889,2.12759997]
[1771835157728,0.1,78.94,78.892,2.12759997]
[1771835158639,0.1,78.94,78.896,3.69383402]
[1771835158840,0.1,78.94,78.897,2.12759997]
[1771835159451,4.94111687,78.93,78.897,2.12759997]
[1771835159748,4.94111687,78.92,78.893,44.36388525]
[1771835159957,0.1,78.94,78.883,2.12759997]
[1771835159958,4.94111687,78.91,78.883,2.12759997]
[1771835160141,4.94111687,78.9,78.883,2.12759997]
[1771835160451,4.94111687,78.91,78.883,2.12759997]
[1771835160749,4.94111687,78.91,78.884,12.67684194]
[1771835161854,4.94111687,78.89,78.87,2.12759997]
[1771835162050,4.94111687,78.9,78.87,2.12759997]
[1771835162348,4.94111687,78.92,78.87,2.12759997]
[1771835162551,4.94111687,78.91,78.87,2.12759997]
[1771835162748,12.67282565,78.909,78.872,2.12759997]
[1771835165532,12.67282565,78.909,78.874,2.12759997]
[1771835166346,31.67783568,78.92,78.874,2.12759997]
[1771835166347,4.94111687,78.92,78.874,2.12759997]
[1771835166648,4.94111687,78.89,78.873,12.67860991]
[1771835166851,4.94111687,78.89,78.874,19.23432999]
[1771835167659,4.94111687,78.88,78.874,19.23432999]
[1771835167845,4.94111687,78.89,78.874,19.23432999]
[1771835168871,4.94111687,78.89,78.872,12.67862521]
[1771835171254,4.94111687,78.89,78.87,2.12759997]
[1771835172154,12.67465958,78.898,78.87,2.12759997]
[1771835172552,12.67465958,78.898,78.871,19.23432999]
[1771835172741,12.67465958,78.898,78.872,2.12759997]
[1771835174165,31.67919725,78.917,78.874,2.12759997]
[1771835174373,31.67919725,78.917,78.876,2.12759997]
[1771835175561,12.67170155,78.916,78.878,2.12759997]
[1771835175945,15.32593722,78.948,78.879,19.23432999]
[1771835175946,12.67009603,78.926,78.879,19.23432999]
[1771835176162,12.67009603,78.926,78.88,2.12759997]
[1771835176362,12.67009603,78.926,78.882,2.12759997]
[1771835176661,31.67081651,78.938,78.882,2.12759997]
[1771835176662,12.66833044,78.937,78.882,2.12759997]
[1771835176857,12.66833044,78.937,78.884,2.12759997]
[1771835177064,5.04111687,78.94,78.877,44.37288436]
[1771835177065,0.1,78.94,78.889,2.12759997]
[1771835177567,0.1,78.94,78.891,2.12759997]
[1771835177751,5.04111687,78.94,78.891,2.12759997]
[1771835178152,0.1,78.94,78.891,2.12759997]
[1771835178757,0.1,78.94,78.893,2.12759997]
[1771835180566,5.04111687,78.94,78.893,2.12759997]
[1771835181374,5.04111687,78.94,78.895,2.12759997]
[1771835181771,0.1,78.94,78.895,2.12759997]
[1771835185959,0.1,78.94,78.897,2.12759997]
[1771835187384,0.1,78.94,78.899,2.12759997]
[1771835187567,0.1,78.94,78.901,2.12759997]
[1771835188379,0.1,78.94,78.9,52.47847469]
[1771835188380,0.1,78.94,78.903,2.12759997]
[1771835189576,0.1,78.94,78.905,2.12759997]
[1771835191292,0.1,78.94,78.907,2.12759997]
[1771835191715,0.1,78.94,78.909,2.12759997]
[1771835192503,12.66480071,78.959,78.91,2.12759997]
[1771835192685,12.66480071,78.959,78.912,2.12759997]
[1771835192990,12.66343362,78.968,78.913,19.23432999]
[1771835193195,12.66343362,78.968,78.914,2.12759997]
[1771835193692,12.66343362,78.968,78.916,2.12759997]
[1771835194594,0.1,78.97,78.916,2.12759997]
[1771835194786,0.1,78.97,78.919,2.12759997]
[1771835194987,12.66319695,78.969,78.919,2.12759997]
[1771835195191,4.94111687,78.96,78.919,2.12759997]
[1771835195804,4.94111687,78.96,78.921,2.12759997]
[1771835195986,12.66319695,78.969,78.921,2.12759997]
[1771835198980,12.66319695,78.969,78.924,2.12759997]
[1771835200680,4.93693592,78.96,78.926,2.12759997]
[1771835200983,4.93693592,78.96,78.928,2.12759997]
[1771835202475,0.1,78.97,78.93,2.12759997]
[1771835202674,0.1,78.97,78.932,2.12759997]
[1771835204694,0.1,78.97,78.934,2.12759997]
[1771835205091,0.1,78.98,78.936,2.12759997]
[1771835205279,0.1,78.98,78.938,2.12759997]
[1771835207196,0.1,78.98,78.939,107.67808052]
[1771835207398,0.1,78.98,78.94,2.12759997]
[1771835207800,0.1,79.0,78.944,2.12759997]
[1771835208400,5.03693592,79.0,78.944,2.12759997]
[1771835209188,0.1,79.0,78.949,2.12759997]
[1771835210295,0.1,79.0,78.951,2.12759997]
[1771835211101,5.03693592,79.0,78.951,2.12759997]
[1771835211295,5.03693592,79.0,78.952,107.66035057]
[1771835211600,5.03693592,79.0,78.953,2.12759997]
[1771835213588,5.03693592,79.0,78.956,2.12759997]
[1771835215209,5.03693592,79.0,78.958,2.12759997]
[1771835217403,5.03693592,79.0,78.96,2.12759997]
[1771835218304,0.1,79.0,78.96,2.12759997]
[1771835219188,5.03693592,79.0,78.96,2.12759997]
[1771835219413,4.93693592,78.99,78.961,44.32567976]
[1771835219585,5.03693592,79.0,78.962,2.12759997]
[1771835222413,5.03693592,79.0,78.964,2.12759997]
[1771835222999,0.1,79.01,78.964,2.12759997]
[1771835223813,4.93693592,79.0,78.964,2.12759997]
[1771835224621,5.03693592,79.01,78.965,44.32343442]
[1771835224795,5.03693592,79.01,78.966,2.12759997]
[1771835227318,12.65678593,79.009,78.968,2.12759997]
[1771835228310,4.93693592,79.0,78.969,19.23432999]
[1771835228710,4.93693592,79.0,78.969,21.36192996]
[1771835229023,4.93693592,79.0,78.97,2.12759997]
[1771835229319,0.1,79.01,78.972,2.12759997]
[1771835229509,12.65678593,79.009,78.972,2.12759997]
[1771835230323,4.93693592,78.99,78.97,12.66303659]